bitfinex-derivatives/quotes_SOLF0:USTF0_20250929
["timestamp","ask_amount","ask_price","bid_price","bid_amount"]
[1759120227485,66.6435,210.0,209.88,60.7]
[1759120227679,7.57,209.99,209.87,12.27226457]
[1759120227883,7.57,209.99,209.89,100.38]
[1759120228182,66.6435,210.0,209.89,100.38]
[1759120228584,7.57,209.99,209.88,4.2864]
[1759120228791,7.57,209.98,209.89,60.7]
[1759120228985,7.57,209.98,209.9,115.5]
[1759120229191,68.82448439,209.99,209.86,7.98566457]
[1759120229391,7.57,209.93,209.87,115.5]
[1759120229589,66.6621,209.94,209.86,62.0]
[1759120229782,66.6621,209.94,209.83,7.98566457]
[1759120230090,7.57,209.93,209.84,234.16782212]
[1759120230890,66.6621,209.94,209.84,234.16782212]
[1759120231092,7.57,209.93,209.84,234.16782212]
[1759120231285,66.6621,209.94,209.84,234.16782212]
[1759120231591,4.2864,209.9,209.84,234.16782212]
[1759120232591,4.2865,209.89,209.84,234.16782212]
[1759120232793,7.57,209.88,209.84,234.16782212]
[1759120233188,11.8567,209.88,209.84,234.16782212]
[1759120233488,7.57,209.9,209.84,234.16782212]
[1759120233889,4.2864,209.89,209.84,234.16782212]
[1759120234088,7.57,209.88,209.84,234.16782212]
[1759120234290,11.8562,209.9,209.84,234.16782212]
[1759120234696,7.57,209.96,209.85,2.17848439]
[1759120234891,11.8551,209.96,209.88,4.2864]
[1759120235091,11.8551,209.96,209.89,115.56]
[1759120235393,4.2851,209.96,209.89,115.56]
[1759120235788,11.8545,209.99,209.9,4.2861]
[1759120236492,4.2847,209.98,209.9,66.2861]
[1759120236689,7.57,209.99,209.89,115.56]
[1759120237693,4.2849,209.96,209.89,115.56]
[1759120239593,4.2849,209.96,209.89,177.56]
[1759120240795,4.2849,209.96,209.89,181.8462]
[1759120240995,4.2849,209.96,209.89,189.83186457]
[1759120243696,4.2849,209.96,209.89,127.83186457]
[1759120251702,4.2849,209.96,209.9,7.98566457]
[1759120252000,11.8549,209.96,209.91,115.5]
[1759120252202,11.8549,209.96,209.91,116.89329502]
[1759120252597,11.8549,209.96,209.91,1.39329502]
[1759120252900,11.8549,209.96,209.92,115.5]
[1759120253700,11.8549,209.96,209.91,1.39329502]
[1759120254000,11.8549,209.96,209.92,115.5]
[1759120255604,11.8549,209.96,209.91,1.39329502]
[1759120255800,11.8549,209.96,209.93,115.5]
[1759120257004,11.8549,209.96,209.94,115.5]
[1759120258003,7.5,209.95,209.94,115.5]
[1759120258200,11.7853,209.95,209.93,115.48]
[1759120259405,4.2853,209.95,209.93,115.48]
[1759120261910,7.5,209.92,209.9,115.48]
[1759120263405,1.39329502,209.94,209.9,115.48]
[1759120263611,4.2859,209.92,209.9,115.48]
[1759120263911,11.7859,209.92,209.9,115.48]
[1759120268116,7.5,209.91,209.9,115.48]
[1759120268311,74.1714,209.91,209.84,126.65348669]
[1759120268516,1.39329502,209.88,209.83,123.46566457]
[1759120268714,1.39329502,209.88,209.83,115.48]
[1759120268914,7.5,209.85,209.83,115.48]
[1759120269109,1.39329502,209.86,209.83,115.48]
[1759120269320,1.39329502,209.86,209.8,354.66566457]
[1759120269518,7.5,209.85,209.81,115.5]
[1759120269814,11.7873,209.85,209.81,115.5]
[1759120270419,4.2875,209.84,209.81,115.5]
[1759120271018,66.6486,209.99,209.81,115.5]
[1759120271215,7.5,209.92,209.82,7.98566457]
[1759120271416,7.5,209.92,209.83,1.39329502]
[1759120272015,8.89329502,209.92,209.83,1.39329502]
[1759120272622,4.2865,209.89,209.83,1.39329502]
[1759120273121,8.89329502,209.92,209.83,9.37895959]
[1759120274120,66.6486,209.99,209.85,1.39329502]
[1759120274121,1.39329502,209.94,209.85,1.39329502]
[1759120274330,1.39329502,209.94,209.86,115.56]
[1759120274822,4.2859,209.92,209.86,115.56]
[1759120277029,5.67869502,209.94,209.86,115.56]
[1759120277228,4.2854,209.94,209.86,124.93895959]
[1759120278125,4.2854,209.94,209.86,127.83246457]
[1759120278323,4.2854,209.94,209.87,1.39329502]
[1759120278522,4.2854,209.94,209.86,127.83246457]
[1759120282329,4.2854,209.94,209.87,5.67989502]
[1759120287233,4.2854,209.94,209.87,13.66555959]
[1759120289033,11.7957,209.93,209.87,13.66555959]
[1759120289233,11.7957,209.93,209.87,1.39329502]
[1759120294431,7.51,209.92,209.88,115.5]
[1759120296538,7.51,209.92,209.87,9.37895959]
[1759120296938,4.2857,209.93,209.88,77.7]
[1759120297841,11.7957,209.93,209.88,77.7]
[1759120298734,4.2852,209.95,209.88,77.7]
[1759120298938,4.2852,209.95,209.89,1.39329502]
[1759120299235,4.2852,209.95,209.88,79.09329502]
[1759120300337,4.2852,209.95,209.88,87.07895959]
[1759120302141,4.2852,209.95,209.88,91.36545959]
[1759120304342,4.2852,209.95,209.89,7.98566457]
[1759120305043,4.2852,209.95,209.88,91.36545959]
[1759120306344,4.2852,209.95,209.89,7.98566457]
[1759120307146,4.2852,209.95,209.88,91.36545959]
[1759120307346,4.2852,209.95,209.88,13.66545959]
[1759120307547,4.2852,209.95,209.89,123.46566457]
[1759120308046,7.51,209.96,209.9,1.39329502]
[1759120308646,4.2848,209.97,209.9,13.66495959]
[1759120309846,11.7948,209.97,209.9,13.66495959]
[1759120312254,11.7948,209.97,209.9,12.27166457]
[1759120312752,11.7948,209.97,209.91,62.0]
[1759120315248,11.7948,209.97,209.91,69.98566457]
[1759120315652,11.7948,209.97,209.91,7.98566457]
[1759120319257,7.46,209.96,209.9,12.27166457]
[1759120320052,4.2848,209.97,209.91,115.48]
[1759120320452,7.46,209.96,209.91,115.48]
[1759120320649,4.2848,209.97,209.91,115.48]
[1759120320850,11.7448,209.97,209.91,115.48]
[1759120321554,7.46,209.94,209.9,7.98566457]
[1759120321756,66.6398,210.01,209.88,7.98566457]
[1759120321757,7.46,209.98,209.88,7.98566457]
[1759120321954,2.17700665,209.99,209.89,107.80566457]
[1759120322155,7.46,209.98,209.89,107.80566457]
[1759120322460,7.46,209.95,209.9,7.98566457]
[1759120322856,11.7445,209.98,209.92,7.98566457]
[1759120325059,11.7445,209.98,209.91,12.27146457]
[1759120325857,7.46,209.96,209.9,7.98566457]
[1759120326058,4.2849,209.97,209.9,7.98566457]
[1759120326059,4.2849,209.97,209.92,115.46]
[1759120326253,7.46,209.96,209.92,115.46]
[1759120326460,4.2849,209.97,209.92,115.46]
[1759120326856,7.46,209.95,209.92,115.46]
[1759120327367,2.17700665,210.02,209.92,115.46]
[1759120327658,7.46,210.01,209.92,115.46]
[1759120327858,2.17700665,210.02,209.92,115.46]
[1759120328255,11.7445,209.98,209.92,115.46]
[1759120330765,11.7445,209.98,209.92,123.44566457]
[1759120331262,4.2849,209.97,209.92,115.46]
[1759120331461,7.46,209.96,209.92,115.46]
[1759120332563,7.33,209.95,209.92,115.46]
[1759120332861,66.6442,210.0,209.91,115.46]
[1759120333058,2.17700665,209.98,209.91,115.46]
[1759120333459,7.33,209.97,209.91,115.46]
[1759120333753,7.33,209.94,209.91,115.46]
[1759120336562,4.284,210.01,209.91,115.46]
[1759120336768,7.33,210.0,209.91,123.44566457]
[1759120337070,7.33,210.0,209.92,7.98566457]
[1759120337265,11.6143,210.0,209.92,7.98566457]
[1759120337765,7.33,210.0,209.92,7.98566457]
[1759120339670,11.6143,210.0,209.92,7.98566457]
[1759120340473,4.2845,209.99,209.92,7.98566457]
[1759120341773,4.2845,209.99,209.93,7.98566457]
[1759120343069,11.6145,209.99,209.92,7.98566457]
[1759120348474,11.6145,209.99,209.93,7.98566457]
[1759120360882,7.24,210.05,209.94,2.17700665]
[1759120361088,7.24,210.14,210.0,2.17700665]
[1759120361288,7.24,210.12,210.01,115.46]
[1759120361589,66.5953,210.15,210.02,115.56]
[1759120361787,7.24,210.09,209.98,7.98566457]
[1759120361979,68.79000665,210.1,209.91,66.6705]
[1759120361980,7.24,210.06,209.96,7.98566457]
[1759120362180,7.24,210.06,209.94,2.17700665]
[1759120362181,7.24,210.06,210.0,5.32392414]
[1759120362691,7.24,210.04,210.0,5.32392414]
[1759120362892,4.2832,210.05,210.0,5.32392414]
[1759120363292,7.24,210.04,210.0,5.32392414]
[1759120363688,4.2832,210.05,210.01,5.32392414]
[1759120363993,7.24,210.04,210.0,5.32392414]
[1759120365695,11.5235,210.04,210.0,5.32392414]
[1759120365996,11.5235,210.04,209.99,5.32392414]
[1759120365997,7.24,210.03,209.99,5.32392414]
[1759120366191,4.2835,210.04,209.99,5.32392414]
[1759120366391,4.2837,210.03,209.99,5.32392414]
[1759120366896,7.24,210.02,209.99,5.32392414]
[1759120367495,4.2839,210.02,209.99,5.32392414]
[1759120367888,7.24,210.01,209.99,5.32392414]
[1759120368794,7.24,210.04,209.99,5.32392414]
[1759120368994,4.2833,210.05,209.99,5.32392414]
[1759120369195,68.79470665,210.08,209.99,5.32392414]
[1759120369496,7.24,210.07,209.99,5.32392414]
[1759120369697,7.24,210.03,209.99,5.32392414]
[1759120370495,4.2835,210.04,209.99,5.32392414]
[1759120370696,7.24,210.03,209.99,5.32392414]
[1759120371099,4.2835,210.04,209.99,5.32392414]
[1759120371401,4.2837,210.03,209.99,5.32392414]
[1759120372102,7.24,210.02,209.99,5.32392414]
[1759120372302,7.24,210.02,210.0,5.32392414]
[1759120373401,7.24,210.02,209.99,5.32392414]
[1759120373700,7.58,210.02,210.0,5.32392414]
[1759120374305,7.58,210.02,209.99,5.32392414]
[1759120374505,4.2837,210.03,209.99,5.32392414]
[1759120375006,7.58,210.02,209.99,5.32392414]
[1759120375503,4.2837,210.03,209.99,5.32392414]
[1759120375703,4.2838,210.02,209.99,5.32392414]
[1759120376005,7.58,210.01,209.99,5.32392414]
[1759120376304,4.2838,210.02,209.99,5.32392414]
[1759120377203,7.58,210.01,209.99,5.32392414]
[1759120379200,7.58,210.01,210.0,5.32392414]
[1759120380709,7.58,210.0,209.99,5.32392414]
[1759120381607,7.58,210.1,209.99,9.85819266]
[1759120381802,1.39252809,210.13,209.97,66.6514]
[1759120381803,7.58,210.12,210.06,5.32391318]
[1759120382106,7.58,210.12,210.03,9.37839786]
[1759120382107,7.58,210.1,210.07,5.32391318]
[1759120382497,7.58,210.12,210.06,5.32391318]
[1759120382698,7.58,210.12,210.05,5.32391318]
[1759120383104,4.2827,210.08,210.05,5.32391318]
[1759120383299,1.39252809,210.11,210.05,5.32391318]
[1759120383504,7.58,210.1,210.04,5.32391318]
[1759120384304,7.58,210.1,210.04,19.31567593]
[1759120384606,7.58,210.07,210.04,19.31567593]
[1759120384902,1.39252809,210.11,210.04,19.31567593]
[1759120385101,7.58,210.08,210.03,5.32391318]
[1759120385408,7.58,210.08,210.02,5.32391318]
[1759120386711,4.2833,210.05,210.02,5.32391318]
[1759120387011,7.58,210.04,210.02,14.62700337]
[1759120387211,7.58,210.06,210.01,5.32391318]
[1759120387515,1.39252809,210.07,210.01,5.32391318]
[1759120387812,7.58,210.06,210.01,5.32391318]
[1759120388017,4.2837,210.03,210.01,5.32391318]
[1759120388309,7.58,210.02,210.01,5.32391318]
[1759120389113,4.2837,210.03,210.01,5.32391318]
[1759120389613,4.2837,210.03,210.02,5.32391318]
[1759120390412,4.2837,210.03,210.02,19.50403068]
[1759120390602,4.2837,210.03,210.02,14.1801175]
[1759120390806,4.2837,210.03,210.01,5.32391318]
[1759120394918,4.2837,210.03,210.01,19.60323248]
[1759120396819,11.8037,210.03,210.01,19.60323248]
[1759120398120,11.8037,210.03,210.02,5.32391318]
[1759120399721,4.2832,210.05,210.02,5.32391318]
[1759120400017,7.52,210.04,210.02,5.32391318]
[1759120400520,7.52,210.04,210.03,5.32391318]
[1759120402326,7.52,210.04,210.01,7.98586977]
[1759120403124,4.2832,210.05,210.01,7.98586977]
[1759120403324,4.2827,210.08,210.04,5.32693408]
[1759120403527,4.2827,210.08,210.05,5.32663707]
[1759120403929,4.2827,210.08,210.06,5.32663707]
[1759120404324,11.8021,210.1,210.06,5.32663707]
[1759120404628,11.8021,210.1,210.07,5.32663707]
[1759120406225,4.2821,210.1,210.07,5.32663707]
[1759120406432,7.29,210.09,210.07,5.32663707]
[1759120406825,4.2821,210.1,210.06,5.32663707]
[1759120407025,67.99142809,210.14,210.06,5.32663707]
[1759120407026,7.29,210.08,210.06,5.32663707]
[1759120410734,7.29,210.11,210.06,5.32663707]
[1759120410934,4.2819,210.12,210.07,5.32663707]
[1759120411135,7.29,210.13,210.07,5.32663707]
[1759120412635,11.572,210.11,210.07,5.32663707]
[1759120412933,11.572,210.11,210.08,5.32663707]
[1759120413129,11.572,210.11,210.07,5.32663707]
[1759120413636,11.572,210.11,210.08,5.32663707]
[1759120414334,11.572,210.11,210.07,5.32663707]
[1759120414838,4.282,210.11,210.07,5.32663707]
[1759120415038,7.29,210.1,210.07,5.32663707]
[1759120415732,4.282,210.11,210.07,5.32663707]
[1759120416037,7.29,210.09,210.08,5.32663707]
[1759120416338,7.29,210.09,210.07,5.32663707]
[1759120418441,7.29,210.08,210.07,5.32663707]
[1759120418636,4.2824,210.09,210.06,5.32663707]
[1759120418835,4.2824,210.09,210.07,5.32663707]
[1759120419040,7.29,210.08,210.06,5.32663707]
[1759120419341,7.29,210.08,210.07,5.32663707]
[1759120426543,11.5722,210.1,210.07,5.32663707]
[1759120426949,11.5722,210.1,210.08,5.32663707]
[1759120427145,4.2817,210.12,210.08,5.32663707]
[1759120427351,11.5717,210.12,210.08,5.32663707]
[1759120427651,66.5764,210.21,210.1,6.71916516]
[1759120427856,7.29,210.2,210.12,5.31647704]
[1759120428258,1.39252809,210.19,210.11,5.31647704]
[1759120428457,7.29,210.18,210.11,5.31647704]
[1759120428653,7.29,210.15,210.11,5.31647704]
[1759120429958,7.29,210.16,210.11,5.31405108]
[1759120430256,7.29,210.14,210.11,5.31405108]
[1759120430461,7.29,210.14,210.08,7.98586977]
[1759120430653,7.29,210.14,210.07,62.0]
[1759120430955,1.39252809,210.15,210.09,5.31603242]
[1759120431149,7.29,210.14,210.06,7.97404864]
[1759120431351,7.29,210.14,210.05,52.61252809]
[1759120431554,4.2816,210.13,210.06,7.97413455]
[1759120431854,1.39252809,210.15,210.09,5.3160897]
[1759120432158,1.39252809,210.13,210.08,5.3160897]
[1759120432459,7.29,210.1,210.08,5.3160897]
[1759120432658,4.282,210.11,210.08,5.3160897]
[1759120433351,7.29,210.1,210.08,5.3160897]
[1759120435263,4.282,210.11,210.08,5.3160897]
[1759120435463,11.902,210.11,210.08,5.3160897]
[1759120435962,7.62,210.1,210.08,5.3160897]
[1759120436765,7.62,210.09,210.08,5.3160897]
[1759120438464,7.62,210.09,210.07,5.3160897]
[1759120438665,4.2822,210.1,210.07,5.3160897]
[1759120439265,7.62,210.09,210.08,5.3160897]
[1759120439464,11.9025,210.08,210.07,5.3160897]
[1759120442372,11.9025,210.08,210.06,5.3160897]
[1759120442670,11.9029,210.06,210.04,5.3160897]
[1759120442871,7.62,210.05,210.04,5.3160897]
[1759120444273,11.9033,210.04,210.03,5.3160897]
[1759120444870,7.62,210.03,210.02,5.3160897]
[1759120445269,4.2837,210.03,210.0,7.97413455]
[1759120445470,4.2837,210.03,210.02,5.32943431]
[1759120446070,11.9037,210.03,210.02,5.32943431]
[1759120447672,7.62,210.03,210.02,5.32943431]
[1759120447874,7.62,210.12,210.01,7.97413455]
[1759120448077,7.62,210.12,210.07,5.32641115]
[1759120448273,4.2817,210.13,210.08,5.32641115]
[1759120448477,11.9017,210.13,210.08,5.32641115]
[1759120448672,7.62,210.12,210.08,5.32641115]
[1759120451182,11.9017,210.13,210.08,5.32641115]
[1759120451380,11.9017,210.13,210.1,5.32641115]
[1759120452081,11.7911,210.15,210.1,5.32641115]
[1759120452382,7.51,210.15,210.11,5.32641115]
[1759120454485,7.51,210.15,210.1,5.32641115]
[1759120454685,7.51,210.2,210.12,5.32641115]
[1759120454985,66.5741,210.22,210.12,5.32641115]
[1759120455187,7.51,210.21,210.12,5.32641115]
[1759120455576,4.2806,210.18,210.12,5.32641115]
[1759120456890,7.51,210.19,210.12,5.32641115]
[1759120457293,7.51,210.19,210.13,5.32641115]
[1759120459688,7.51,210.22,210.13,5.32641115]
[1759120459891,7.51,210.22,210.14,115.5]
[1759120460085,7.51,210.22,210.13,5.32641115]
[1759120460386,7.51,210.22,210.14,79.0]
[1759120460592,7.51,210.22,210.13,9.60771115]
[1759120460787,7.51,210.22,210.14,75.62]
[1759120461389,7.51,210.25,210.15,2.1740563]
[1759120461594,7.51,210.25,210.15,7.50046745]
[1759120461994,7.51,210.25,210.16,115.64]
[1759120462194,7.51,210.25,210.17,4.2805]
[1759120462696,11.7884,210.28,210.19,4.2801]
[1759120463694,11.7884,210.28,210.2,115.66]
[1759120465291,11.7884,210.28,210.19,4.2801]
[1759120465491,11.7884,210.28,210.2,115.62]
[1759120466589,11.7884,210.28,210.19,4.2801]
[1759120466796,11.7884,210.28,210.2,115.6]
[1759120467096,11.7884,210.28,210.19,4.2801]
[1759120467292,11.7884,210.28,210.2,115.6]
[1759120467494,11.7884,210.28,210.19,4.2801]
[1759120467697,11.7884,210.28,210.2,115.6]
[1759120467892,11.7884,210.28,210.19,4.2801]
[1759120468094,11.7884,210.28,210.2,115.58]
[1759120468288,11.7884,210.28,210.21,115.58]
[1759120469993,7.51,210.28,210.21,115.58]
[1759120470197,7.51,210.28,210.22,115.56]
[1759120470797,7.51,210.28,210.21,4.2798]
[1759120470998,7.51,210.28,210.22,115.54]
[1759120471996,7.51,210.28,210.21,4.2798]
[1759120472300,7.51,210.28,210.22,115.58]
[1759120474600,7.51,210.28,210.21,4.2798]
[1759120474796,7.51,210.28,210.22,115.54]
[1759120476396,7.51,210.28,210.21,4.2798]
[1759120477004,7.51,210.28,210.22,115.5]
[1759120477205,7.51,210.28,210.23,115.5]
[1759120477901,7.51,210.28,210.21,4.2798]
[1759120478105,7.51,210.28,210.24,115.5]
[1759120478300,11.708,210.31,210.24,115.5]
[1759120478804,11.708,210.31,210.25,115.48]
[1759120479610,11.708,210.31,210.25,130.05252774]
[1759120483812,7.43,210.31,210.25,130.05252774]
[1759120484112,7.43,210.31,210.25,129.99252774]
[1759120484406,4.2774,210.33,210.26,115.42]
[1759120484607,7.43,210.32,210.26,115.42]
[1759120485405,11.7077,210.32,210.26,115.42]
[1759120485601,7.43,210.32,210.26,115.42]
[1759120486105,4.2779,210.31,210.26,115.42]
[1759120486300,7.43,210.3,210.26,115.42]
[1759120486702,4.2779,210.31,210.26,115.42]
[1759120486899,7.43,210.3,210.26,115.42]
[1759120487508,11.7079,210.31,210.26,115.42]
[1759120487709,7.43,210.3,210.26,115.42]
[1759120487903,11.7081,210.3,210.26,115.42]
[1759120488209,4.2781,210.3,210.26,115.42]
[1759120495831,4.2781,210.3,210.25,14.226686]
[1759120496027,7.43,210.32,210.22,5.32641115]
[1759120496231,4.2784,210.28,210.23,50.0]
[1759120496432,7.71,210.27,210.21,5.32641115]
[1759120496630,7.71,210.27,210.22,115.34]
[1759120497032,4.2784,210.28,210.22,115.34]
[1759120497229,4.2784,210.28,210.23,115.34]
[1759120497524,4.2784,210.28,210.24,115.34]
[1759120497731,11.9884,210.28,210.24,129.4040261]
[1759120499032,11.9884,210.28,210.25,115.34]
[1759120499830,4.2787,210.27,210.25,115.34]
[1759120500525,11.9891,210.25,210.21,5.32641115]
[1759120500730,4.2791,210.25,210.22,115.32]
[1759120501034,4.2791,210.25,210.22,129.84180024]
[1759120501332,4.2791,210.25,210.22,135.16821139]
[1759120501936,4.2787,210.27,210.22,135.16821139]
[1759120502234,4.2787,210.27,210.23,115.32]
[1759120502435,4.2787,210.27,210.23,5.32641115]
[1759120502632,11.9887,210.27,210.24,115.32]
[1759120503233,9.0991246,210.34,210.26,1.3891246]
[1759120503635,9.0991246,210.34,210.27,115.46]
[1759120503829,11.9879,210.31,210.26,1.3891246]
[1759120504026,4.2779,210.31,210.26,1.3891246]
[1759120504230,4.2779,210.31,210.27,44.52]
[1759120505535,4.2779,210.31,210.27,49.84641115]
[1759120505931,66.5269,210.37,210.27,49.84641115]
[1759120505932,7.71,210.39,210.28,1.3891246]
[1759120506131,7.71,210.39,210.32,1.3891246]
[1759120506532,7.71,210.39,210.33,20.9]
[1759120508939,11.9863,210.39,210.33,20.9]
[1759120509140,4.2763,210.39,210.33,20.9]
[1759120513448,4.2763,210.39,210.32,1.3891246]
[1759120513640,4.2763,210.39,210.33,115.44]
[1759120514347,12.0565,210.38,210.33,115.44]
[1759120519144,12.0567,210.37,210.31,5.32641115]
[1759120519350,4.2767,210.37,210.32,115.38]
[1759120519543,7.78,210.36,210.32,115.38]
[1759120519856,4.2767,210.37,210.32,115.38]
[1759120520054,7.78,210.36,210.32,115.38]
[1759120520455,4.2767,210.37,210.32,115.38]
[1759120520651,4.2767,210.37,210.33,115.38]
[1759120520856,12.0567,210.37,210.33,115.38]
[1759120522061,4.276,210.4,210.33,120.70641115]
[1759120522660,4.276,210.4,210.34,115.4]
[1759120523058,4.276,210.4,210.35,115.4]
[1759120523256,7.78,210.39,210.35,115.4]
[1759120524562,4.2763,210.39,210.35,115.4]
[1759120524760,7.39,210.38,210.35,115.4]
[1759120525352,4.2763,210.39,210.35,115.4]
[1759120525559,11.6663,210.39,210.35,115.4]
[1759120526561,7.39,210.38,210.35,115.4]
[1759120526763,7.39,210.38,210.31,6.71553575]
[1759120526965,7.39,210.38,210.32,61.6]
[1759120527458,7.39,210.38,210.33,115.36]
[1759120527659,4.2767,210.37,210.33,115.36]
[1759120528965,11.6667,210.37,210.33,115.36]
[1759120530564,4.2769,210.36,210.31,6.71553575]
[1759120530771,7.39,210.35,210.32,120.64641115]
[1759120530967,7.39,210.35,210.32,5.32641115]
[1759120531167,7.39,210.35,210.32,120.64641115]
[1759120531361,7.39,210.35,210.32,115.32]
[1759120531569,11.6671,210.35,210.31,6.71553575]
[1759120531768,11.6671,210.35,210.32,120.64641115]
[1759120532667,7.39,210.33,210.3,5.32641115]
[1759120532869,7.39,210.33,210.29,120.64641115]
[1759120533370,11.6675,210.33,210.29,120.64641115]
[1759120535171,11.6675,210.33,210.3,115.32]
[1759120536173,11.6675,210.33,210.29,5.32641115]
[1759120536374,11.6675,210.33,210.3,120.64641115]
[1759120536575,11.6675,210.33,210.3,5.32641115]
[1759120536773,11.6675,210.33,210.3,120.64641115]
[1759120537480,7.39,210.32,210.3,120.64641115]
[1759120538078,11.6677,210.32,210.3,120.64641115]
[1759120538274,7.39,210.31,210.29,5.32641115]
[1759120538476,1.3891246,210.34,210.28,120.64641115]
[1759120538677,1.3891246,210.37,210.3,5.32641115]
[1759120539385,1.3891246,210.37,210.31,115.38]
[1759120539581,4.2768,210.36,210.31,115.38]
[1759120539780,11.6668,210.36,210.31,115.38]
[1759120540483,4.2768,210.36,210.3,5.32641115]
[1759120540780,4.2768,210.36,210.31,120.72641115]
[1759120541280,4.2768,210.36,210.32,115.4]
[1759120541784,7.39,210.35,210.32,115.4]
[1759120541981,7.39,210.35,210.31,120.72641115]
[1759120542982,7.39,210.35,210.31,5.32641115]
[1759120543176,7.39,210.35,210.31,120.70641115]
[1759120543687,11.6671,210.35,210.31,120.70641115]
[1759120544887,11.6671,210.35,210.32,5.32641115]
[1759120545085,11.6671,210.35,210.32,120.68641115]
[1759120546187,4.2771,210.35,210.32,120.68641115]
[1759120546576,4.2771,210.35,210.33,120.66641115]
[1759120546778,4.2766,210.37,210.33,120.66641115]
[1759120547081,8.7791246,210.4,210.34,5.32641115]
[1759120547277,8.7791246,210.4,210.34,120.66641115]
[1759120548682,11.6662,210.39,210.34,120.66641115]
[1759120549379,11.6662,210.39,210.35,5.32641115]
[1759120550184,1.3891246,210.4,210.35,5.32641115]
[1759120550384,7.39,210.39,210.35,5.32641115]
[1759120550586,4.2767,210.37,210.35,5.32641115]
[1759120551290,11.6667,210.37,210.35,5.32641115]
[1759120551484,7.39,210.36,210.35,5.32641115]
[1759120551684,11.667,210.35,210.33,5.32641115]
[1759120554188,4.277,210.35,210.33,5.32641115]
[1759120554384,4.2774,210.33,210.32,5.32641115]
[1759120554583,11.7174,210.33,210.31,5.32641115]
[1759120558289,7.44,210.32,210.31,5.32641115]
[1759120558594,66.5261,210.37,210.28,5.32641115]
[1759120558595,7.44,210.3,210.28,5.32641115]
[1759120558892,7.44,210.34,210.28,5.32641115]
[1759120559092,4.2776,210.33,210.28,5.32641115]
[1759120559393,7.44,210.34,210.28,5.32641115]
[1759120560491,4.2782,210.3,210.27,5.32641115]
[1759120560694,7.44,210.29,210.27,5.32641115]
[1759120562100,4.2782,210.3,210.27,5.32641115]
[1759120562296,7.44,210.29,210.26,5.32641115]
[1759120563188,4.2782,210.3,210.26,5.32641115]
[1759120563390,7.44,210.29,210.26,5.32641115]
[1759120566001,4.2782,210.3,210.26,120.64641115]
[1759120566201,7.44,210.29,210.26,5.32641115]
[1759120566395,7.44,210.29,210.26,120.64641115]
[1759120568501,4.2773,210.34,210.27,120.64641115]
[1759120569004,4.2773,210.34,210.28,115.34]
[1759120570507,4.2773,210.34,210.28,5.32641115]
[1759120570804,7.44,210.33,210.29,115.34]
[1759120571604,4.2773,210.34,210.29,115.34]
[1759120572105,4.2773,210.34,210.3,115.36]
[1759120572405,11.5573,210.34,210.3,115.36]
[1759120575007,7.28,210.33,210.3,115.36]
[1759120576109,11.5575,210.33,210.3,115.36]
[1759120576807,4.2775,210.33,210.3,115.36]
[1759120577009,7.28,210.32,210.28,5.32641115]
[1759120577208,11.5577,210.32,210.28,120.64641115]
[1759120577406,11.5577,210.32,210.29,5.32641115]
[1759120578804,11.5577,210.32,210.28,120.64641115]
[1759120585605,4.2777,210.32,210.29,5.32641115]
[1759120585808,4.2777,210.32,210.29,120.64641115]
[1759120591019,74.2555,210.34,210.28,5.32641115]
[1759120591218,7.72,210.33,210.28,46.32]
[1759120592217,66.5355,210.34,210.28,46.32]
[1759120592607,4.2781,210.3,210.28,46.32]